[Event "Betsys MČR v online bleskovém šachu 2021"]
[Site "Chess.com"]
[Date "2021.04.17"]
[Round "3"]
[White "ZdenekRomanek"]
[Black "MametevArtem097"]
[Result "0-1"]
[WhiteElo "1604"]
[BlackElo "1982"]
[TimeControl "180+1"]
[EndTime "9:25:32 PDT"]
[Termination "Uživatel MametevArtem097 zvítězil po vzdání soupeře"]

1. d4 {[%clk 0:03:00.9]} 1... Nf6 {[%clk 0:02:59.6]} 2. c4 {[%clk 0:03:00]} 2...
e6 {[%clk 0:02:59.2]} 3. Nc3 {[%clk 0:02:59.3]} 3... Bb4 {[%clk 0:02:58.9]} 4.
Nf3 {[%clk 0:02:58.3]} 4... O-O {[%clk 0:02:58.4]} 5. e3 {[%clk 0:02:57.6]} 5...
c5 {[%clk 0:02:57.8]} 6. a3 {[%clk 0:02:56.1]} 6... Bxc3+ {[%clk 0:02:57]} 7.
bxc3 {[%clk 0:02:55.2]} 7... d5 {[%clk 0:02:56.9]} 8. Be2 {[%clk 0:02:54]} 8...
Nc6 {[%clk 0:02:52]} 9. O-O {[%clk 0:02:52.8]} 9... b6 {[%clk 0:02:51.8]} 10.
Rb1 {[%clk 0:02:50.6]} 10... Bb7 {[%clk 0:02:51.2]} 11. dxc5 {[%clk 0:02:49.6]}
11... dxc4 {[%clk 0:02:51]} 12. cxb6 {[%clk 0:02:44.9]} 12... Qxd1 {[%clk
0:02:45]} 13. Rxd1 {[%clk 0:02:43.7]} 13... axb6 {[%clk 0:02:45.9]} 14. Rxb6
{[%clk 0:02:38.7]} 14... Rab8 {[%clk 0:02:46]} 15. Bxc4 {[%clk 0:02:36.4]} 15...
Na5 {[%clk 0:02:40.6]} 16. Ba2 {[%clk 0:02:31.8]} 16... Bxf3 {[%clk 0:02:36.5]}
17. Rxb8 {[%clk 0:02:27.5]} 17... Bxd1 {[%clk 0:02:36.2]} 18. Rxf8+ {[%clk
0:02:21.1]} 18... Kxf8 {[%clk 0:02:37.1]} 19. c4 {[%clk 0:02:14]} 19... Bb3
{[%clk 0:02:32.4]} 20. Bxb3 {[%clk 0:02:11.3]} 20... Nxb3 {[%clk 0:02:33.3]} 21.
Bb2 {[%clk 0:02:10.6]} 21... Ke7 {[%clk 0:02:32.2]} 22. Bd4 {[%clk 0:02:06]}
22... Kd6 {[%clk 0:02:27.5]} 23. f3 {[%clk 0:01:56.9]} 23... Nxd4 {[%clk
0:02:26.8]} 24. exd4 {[%clk 0:01:55.6]} 24... e5 {[%clk 0:02:27.5]} 25. dxe5+
{[%clk 0:01:51.8]} 25... Kxe5 {[%clk 0:02:27.2]} 26. Kf2 {[%clk 0:01:47.5]}
26... Kd4 {[%clk 0:02:27.4]} 27. Kg3 {[%clk 0:01:38.7]} 27... Kxc4 {[%clk
0:02:26.9]} 28. Kf4 {[%clk 0:01:38]} 28... Kb3 {[%clk 0:02:25.1]} 29. g4 {[%clk
0:01:37.3]} 29... Kxa3 {[%clk 0:02:24.7]} 30. g5 {[%clk 0:01:35.6]} 30... Nh5+
{[%clk 0:02:24.7]} 31. Kf5 {[%clk 0:01:31.8]} 31... Kb3 {[%clk 0:02:10.6]} 32.
Ke5 {[%clk 0:01:27.7]} 32... Kc3 {[%clk 0:02:08.8]} 33. Kd6 {[%clk 0:01:26.8]}
33... f6 {[%clk 0:02:04.8]} 34. h4 {[%clk 0:01:21.8]} 34... fxg5 {[%clk
0:02:00.6]} 35. hxg5 {[%clk 0:01:21]} 35... Kd4 {[%clk 0:02:01.2]} 36. Ke6
{[%clk 0:01:20.3]} 36... Ke3 {[%clk 0:01:57]} 37. Kf7 {[%clk 0:01:16.6]} 37...
g6 {[%clk 0:01:35.2]} 38. Kg8 {[%clk 0:01:13.7]} 38... Kf4 {[%clk 0:01:35.3]}
39. Kxh7 {[%clk 0:01:12.9]} 39... Kxg5 {[%clk 0:01:35.4]} 40. Kg8 {[%clk
0:01:01.4]} 40... Kf4 {[%clk 0:01:31.7]} 41. Kf7 {[%clk 0:01:00.5]} 41... g5
{[%clk 0:01:31.4]} 42. Kg6 {[%clk 0:00:59.9]} 42... Ng3 {[%clk 0:01:24.8]} 0-1

[Event "Betsys MČR v online bleskovém šachu 2021"]
[Site "Chess.com"]
[Date "2021.04.17"]
[Round "3"]
[White "xnepom"]
[Black "FormerProdigy"]
[Result "0-1"]
[WhiteElo "2252"]
[BlackElo "2857"]
[TimeControl "180+1"]
[EndTime "9:25:35 PDT"]
[Termination "Uživatel FormerProdigy zvítězil po vzdání soupeře"]

1. e4 {[%clk 0:03:00.9]} 1... c5 {[%clk 0:02:58.3]} 2. c3 {[%clk 0:03:00.2]}
2... d5 {[%clk 0:02:56.7]} 3. exd5 {[%clk 0:03:00.1]} 3... Qxd5 {[%clk
0:02:57.6]} 4. d4 {[%clk 0:03:00.5]} 4... Nf6 {[%clk 0:02:57.7]} 5. Nf3 {[%clk
0:03:00.6]} 5... e6 {[%clk 0:02:56.9]} 6. Bd3 {[%clk 0:02:59.7]} 6... Nc6 {[%clk
0:02:43.3]} 7. O-O {[%clk 0:02:57.3]} 7... cxd4 {[%clk 0:02:41.6]} 8. cxd4
{[%clk 0:02:57.2]} 8... Be7 {[%clk 0:02:41]} 9. Nc3 {[%clk 0:02:57.2]} 9... Qd6
{[%clk 0:02:38.7]} 10. Nb5 {[%clk 0:02:53.9]} 10... Qd8 {[%clk 0:02:24.2]} 11.
Bf4 {[%clk 0:02:52.7]} 11... Nd5 {[%clk 0:02:23.4]} 12. Bg3 {[%clk 0:02:49.9]}
12... a6 {[%clk 0:02:12.2]} 13. Nc3 {[%clk 0:02:47.3]} 13... O-O {[%clk
0:02:12.3]} 14. Qe2 {[%clk 0:02:39.9]} 14... Re8 {[%clk 0:01:59.2]} 15. Rad1
{[%clk 0:02:35.8]} 15... g6 {[%clk 0:01:53.9]} 16. Nxd5 {[%clk 0:02:12.4]} 16...
exd5 {[%clk 0:01:53.3]} 17. h3 {[%clk 0:01:20.8]} 17... Bf6 {[%clk 0:01:53.3]}
18. Be5 {[%clk 0:01:15.2]} 18... Nxd4 {[%clk 0:01:50.7]} 19. Nxd4 {[%clk
0:01:14.2]} 19... Bxe5 {[%clk 0:01:50.8]} 20. Rfe1 {[%clk 0:00:49.8]} 20... Bh2+
{[%clk 0:01:50.5]} 21. Kxh2 {[%clk 0:00:50.2]} 21... Rxe2 {[%clk 0:01:50.3]} 22.
Rxe2 {[%clk 0:00:50.5]} 22... Qd6+ {[%clk 0:01:48.9]} 23. g3 {[%clk 0:00:49.2]}
23... Bd7 {[%clk 0:01:49.8]} 24. a3 {[%clk 0:00:47.6]} 24... Qf6 {[%clk
0:01:44.1]} 25. Bb1 {[%clk 0:00:41.5]} 25... h5 {[%clk 0:01:42.1]} 26. Red2
{[%clk 0:00:40.9]} 26... h4 {[%clk 0:01:40.7]} 27. Re1 {[%clk 0:00:30.4]} 27...
Re8 {[%clk 0:01:36.3]} 28. Rxe8+ {[%clk 0:00:29.5]} 28... Bxe8 {[%clk
0:01:37.2]} 29. Bc2 {[%clk 0:00:23.4]} 29... Bd7 {[%clk 0:01:32.5]} 30. Bd1
{[%clk 0:00:22.1]} 30... hxg3+ {[%clk 0:01:30.6]} 31. fxg3 {[%clk 0:00:22]}
31... Qf1 {[%clk 0:01:29]} 32. Bf3 {[%clk 0:00:20.8]} 32... Qxh3+ {[%clk
0:01:28.1]} 33. Kg1 {[%clk 0:00:20.2]} 33... Qxg3+ {[%clk 0:01:29]} 0-1

[Event "Betsys MČR v online bleskovém šachu 2021"]
[Site "Chess.com"]
[Date "2021.04.17"]
[Round "3"]
[White "Qb1xh8"]
[Black "pedroholly22"]
[Result "0-1"]
[WhiteElo "2130"]
[BlackElo "2398"]
[TimeControl "180+1"]
[EndTime "9:25:38 PDT"]
[Termination "Uživatel pedroholly22 zvítězil po vzdání soupeře"]

1. d4 {[%clk 0:03:00.9]} 1... Nf6 {[%clk 0:02:59.4]} 2. Nf3 {[%clk 0:02:58.8]}
2... e6 {[%clk 0:02:58.6]} 3. c4 {[%clk 0:02:54.3]} 3... c5 {[%clk 0:02:55.8]}
4. d5 {[%clk 0:02:50.2]} 4... exd5 {[%clk 0:02:56.7]} 5. cxd5 {[%clk 0:02:51]}
5... d6 {[%clk 0:02:57.1]} 6. Nc3 {[%clk 0:02:50.6]} 6... g6 {[%clk 0:02:53.7]}
7. a4 {[%clk 0:02:45.1]} 7... Bg7 {[%clk 0:02:50]} 8. Nd2 {[%clk 0:02:43]} 8...
O-O {[%clk 0:02:48.8]} 9. e4 {[%clk 0:02:43.1]} 9... b6 {[%clk 0:02:42]} 10. Be2
{[%clk 0:02:42.8]} 10... Ba6 {[%clk 0:02:41.2]} 11. O-O {[%clk 0:02:41.8]} 11...
Re8 {[%clk 0:02:40.5]} 12. Bb5 {[%clk 0:02:37.8]} 12... Bxb5 {[%clk 0:02:17.6]}
13. axb5 {[%clk 0:02:38.7]} 13... Nbd7 {[%clk 0:02:17.4]} 14. f4 {[%clk
0:02:20.6]} 14... Nh5 {[%clk 0:02:09.1]} 15. Nc4 {[%clk 0:01:29.4]} 15... Bd4+
{[%clk 0:01:19.6]} 16. Kh1 {[%clk 0:01:28.6]} 16... Qh4 {[%clk 0:01:16.4]} 17.
Qf3 {[%clk 0:01:18.9]} 17... Ndf6 {[%clk 0:01:02.3]} 18. Bd2 {[%clk 0:00:37.4]}
18... Ng4 {[%clk 0:00:58.8]} 19. h3 {[%clk 0:00:31.5]} 19... Ng3+ {[%clk
0:00:53.8]} 0-1

[Event "Betsys MČR v online bleskovém šachu 2021"]
[Site "Chess.com"]
[Date "2021.04.17"]
[Round "3"]
[White "marosino"]
[Black "BetsysBetting"]
[Result "0-1"]
[WhiteElo "1587"]
[BlackElo "1998"]
[TimeControl "180+1"]
[EndTime "9:25:39 PDT"]
[Termination "Uživatel BetsysBetting zvítězil matem"]

1. b3 {[%clk 0:03:00.9]} 1... e5 {[%clk 0:02:52.7]} 2. Bb2 {[%clk 0:03:00.3]}
2... Nc6 {[%clk 0:02:52]} 3. g3 {[%clk 0:02:59.9]} 3... d5 {[%clk 0:02:51.8]} 4.
Bg2 {[%clk 0:02:59.8]} 4... h5 {[%clk 0:02:44]} 5. h4 {[%clk 0:02:58.7]} 5...
Nf6 {[%clk 0:02:32.5]} 6. e3 {[%clk 0:02:58.4]} 6... Be6 {[%clk 0:02:32.6]} 7.
Nc3 {[%clk 0:02:56.1]} 7... Qd7 {[%clk 0:02:31.5]} 8. a4 {[%clk 0:02:53.2]} 8...
Be7 {[%clk 0:02:28.2]} 9. d3 {[%clk 0:02:51]} 9... O-O-O {[%clk 0:02:24.3]} 10.
Qd2 {[%clk 0:02:46.7]} 10... Bb4 {[%clk 0:02:21.6]} 11. Nge2 {[%clk 0:02:39.6]}
11... d4 {[%clk 0:02:18]} 12. exd4 {[%clk 0:02:31.9]} 12... exd4 {[%clk
0:02:17.3]} 13. O-O {[%clk 0:02:25.5]} 13... dxc3 {[%clk 0:02:11.8]} 14. Bxc3
{[%clk 0:02:25.2]} 14... Bxc3 {[%clk 0:02:06.9]} 15. Qxc3 {[%clk 0:02:22.2]}
15... Bd5 {[%clk 0:02:04.7]} 16. b4 {[%clk 0:02:18.3]} 16... Bxg2 {[%clk
0:01:59.6]} 17. Kxg2 {[%clk 0:02:17.9]} 17... Qd5+ {[%clk 0:02:00]} 18. Kg1
{[%clk 0:02:17.3]} 18... Ne5 {[%clk 0:01:59.9]} 19. Nf4 {[%clk 0:02:14.8]} 19...
Nf3+ {[%clk 0:01:37.3]} 20. Kh1 {[%clk 0:01:46.8]} 20... Qf5 {[%clk 0:01:36.9]}
21. d4 {[%clk 0:01:22.9]} 21... Nxd4 {[%clk 0:01:35.6]} 22. Rad1 {[%clk
0:01:19.2]} 22... Ne6 {[%clk 0:01:18.9]} 23. Nxe6 {[%clk 0:00:52.6]} 23... Qh3+
{[%clk 0:01:09.2]} 24. Kg1 {[%clk 0:00:49.6]} 24... fxe6 {[%clk 0:01:09.4]} 25.
Rd3 {[%clk 0:00:34.6]} 25... Ng4 {[%clk 0:01:01.9]} 26. Rxd8+ {[%clk 0:00:31.3]}
26... Rxd8 {[%clk 0:01:01.1]} 27. Qxg7 {[%clk 0:00:29.1]} 27... Qh2# {[%clk
0:00:59.8]} 0-1

[Event "Betsys MČR v online bleskovém šachu 2021"]
[Site "Chess.com"]
[Date "2021.04.17"]
[Round "3"]
[White "zaciname"]
[Black "VOJTASEK2009"]
[Result "1-0"]
[WhiteElo "724"]
[BlackElo "1279"]
[TimeControl "180+1"]
[EndTime "9:25:39 PDT"]
[Termination "Uživatel zaciname zvítězil matem"]

1. e4 {[%clk 0:02:57.5]} 1... e5 {[%clk 0:02:58.6]} 2. Nf3 {[%clk 0:02:57.8]}
2... Nc6 {[%clk 0:02:57.4]} 3. Bc4 {[%clk 0:02:58]} 3... Bc5 {[%clk 0:02:55.5]}
4. d3 {[%clk 0:02:58]} 4... h6 {[%clk 0:02:53.9]} 5. h3 {[%clk 0:02:56.4]} 5...
Nf6 {[%clk 0:02:52.4]} 6. Be3 {[%clk 0:02:55.5]} 6... Bb6 {[%clk 0:02:50.1]} 7.
Nc3 {[%clk 0:02:54]} 7... d6 {[%clk 0:02:49.5]} 8. Nd5 {[%clk 0:02:53.3]} 8...
Nxd5 {[%clk 0:02:44.6]} 9. Bxd5 {[%clk 0:02:51.6]} 9... O-O {[%clk 0:02:36.7]}
10. Bxc6 {[%clk 0:02:47]} 10... bxc6 {[%clk 0:02:35.5]} 11. Qd2 {[%clk
0:02:46.7]} 11... Qf6 {[%clk 0:02:30.8]} 12. O-O-O {[%clk 0:02:34.1]} 12... d5
{[%clk 0:02:25.1]} 13. exd5 {[%clk 0:02:29.1]} 13... cxd5 {[%clk 0:02:23.6]} 14.
Nh2 {[%clk 0:02:18.9]} 14... d4 {[%clk 0:02:21.3]} 15. Bxh6 {[%clk 0:02:10.3]}
15... gxh6 {[%clk 0:02:13.1]} 16. Ng4 {[%clk 0:02:09.5]} 16... Qg6 {[%clk
0:01:58.4]} 17. Nxe5 {[%clk 0:02:03.3]} 17... Qf6 {[%clk 0:01:37.9]} 18. Ng4
{[%clk 0:02:01.8]} 18... Bxg4 {[%clk 0:01:26.7]} 19. hxg4 {[%clk 0:01:59.8]}
19... Kg7 {[%clk 0:01:20.4]} 20. Rh3 {[%clk 0:01:55.7]} 20... Rab8 {[%clk
0:01:01.4]} 21. Rdh1 {[%clk 0:01:55.3]} 21... Rh8 {[%clk 0:00:57.9]} 22. g5
{[%clk 0:01:52.1]} 22... Qe6 {[%clk 0:00:30.6]} 23. Rxh6 {[%clk 0:01:43.9]}
23... Qxa2 {[%clk 0:00:20.2]} 24. Qf4 {[%clk 0:01:35]} 24... Qa1+ {[%clk
0:00:19.2]} 25. Kd2 {[%clk 0:01:33.9]} 25... Ba5+ {[%clk 0:00:16.4]} 26. Ke2
{[%clk 0:01:28.1]} 26... Qxb2 {[%clk 0:00:14.1]} 27. Qf6+ {[%clk 0:01:25]} 27...
Kf8 {[%clk 0:00:05.7]} 28. Rxh8# {[%clk 0:01:24.5]} 1-0

[Event "Betsys MČR v online bleskovém šachu 2021"]
[Site "Chess.com"]
[Date "2021.04.17"]
[Round "3"]
[White "PremetFugas"]
[Black "KJ327NR"]
[Result "1-0"]
[WhiteElo "2139"]
[BlackElo "2341"]
[TimeControl "180+1"]
[EndTime "9:25:40 PDT"]
[Termination "Uživatel PremetFugas zvítězil po vzdání soupeře"]

1. d4 {[%clk 0:02:59.7]} 1... Nf6 {[%clk 0:02:59.3]} 2. c4 {[%clk 0:02:59.4]}
2... e6 {[%clk 0:02:59.2]} 3. Nc3 {[%clk 0:02:58.1]} 3... d5 {[%clk 0:02:58.7]}
4. Bg5 {[%clk 0:02:54.4]} 4... Nbd7 {[%clk 0:02:57.2]} 5. Nf3 {[%clk 0:02:51.2]}
5... Be7 {[%clk 0:02:56]} 6. e3 {[%clk 0:02:50.2]} 6... h6 {[%clk 0:02:53.3]} 7.
Bh4 {[%clk 0:02:47.4]} 7... O-O {[%clk 0:02:52.7]} 8. Qc2 {[%clk 0:02:46.6]}
8... c6 {[%clk 0:02:46.3]} 9. Bd3 {[%clk 0:02:37.2]} 9... dxc4 {[%clk
0:02:44.9]} 10. Bxc4 {[%clk 0:02:37.4]} 10... b5 {[%clk 0:02:45.1]} 11. Bd3
{[%clk 0:02:37]} 11... Bb7 {[%clk 0:02:44.9]} 12. O-O {[%clk 0:02:36.1]} 12...
a6 {[%clk 0:02:44.9]} 13. Rfd1 {[%clk 0:02:33.3]} 13... Qb6 {[%clk 0:02:23.9]}
14. Ne4 {[%clk 0:02:24.3]} 14... Nd5 {[%clk 0:01:32]} 15. Bxe7 {[%clk
0:02:15.9]} 15... Nxe7 {[%clk 0:01:31.6]} 16. Nd6 {[%clk 0:02:13.1]} 16... Nf6
{[%clk 0:01:00.2]} 17. e4 {[%clk 0:02:08.2]} 17... Rad8 {[%clk 0:00:40.2]} 18.
Nxb7 {[%clk 0:02:00.3]} 18... Qxb7 {[%clk 0:00:40]} 19. Rac1 {[%clk 0:01:59.7]}
19... Rc8 {[%clk 0:00:31.1]} 20. Qe2 {[%clk 0:01:57]} 20... Nd7 {[%clk
0:00:29.6]} 21. e5 {[%clk 0:01:50.5]} 21... c5 {[%clk 0:00:29.8]} 22. Bb1 {[%clk
0:01:44.3]} 22... cxd4 {[%clk 0:00:22.2]} 23. Nxd4 {[%clk 0:01:39.8]} 23... Rxc1
{[%clk 0:00:21.9]} 24. Rxc1 {[%clk 0:01:39.5]} 24... Rc8 {[%clk 0:00:21.6]} 25.
Rd1 {[%clk 0:01:32]} 25... Nd5 {[%clk 0:00:15]} 26. g3 {[%clk 0:01:28.6]} 26...
g6 {[%clk 0:00:10.7]} 27. Qe4 {[%clk 0:01:24.9]} 27... Ne7 {[%clk 0:00:09.2]}
28. Qxb7 {[%clk 0:01:23.3]} 1-0

[Event "Betsys MČR v online bleskovém šachu 2021"]
[Site "Chess.com"]
[Date "2021.04.17"]
[Round "3"]
[White "Krejcak"]
[Black "Federer302"]
[Result "1-0"]
[WhiteElo "2003"]
[BlackElo "1631"]
[TimeControl "180+1"]
[EndTime "9:25:40 PDT"]
[Termination "Uživatel Krejcak zvítězil na čas"]

1. e4 {[%clk 0:03:00.9]} 1... c5 {[%clk 0:02:59.1]} 2. Nc3 {[%clk 0:03:00.3]}
2... g6 {[%clk 0:02:58.4]} 3. f4 {[%clk 0:02:58.6]} 3... Bg7 {[%clk 0:02:57.5]}
4. Nf3 {[%clk 0:02:58.7]} 4... Nc6 {[%clk 0:02:56.6]} 5. Bb5 {[%clk 0:02:58.2]}
5... d6 {[%clk 0:02:55.5]} 6. Bxc6+ {[%clk 0:02:57.3]} 6... bxc6 {[%clk
0:02:56]} 7. O-O {[%clk 0:02:57.8]} 7... Nf6 {[%clk 0:02:55.7]} 8. d3 {[%clk
0:02:58.2]} 8... O-O {[%clk 0:02:55.4]} 9. h3 {[%clk 0:02:58]} 9... e6 {[%clk
0:02:51.3]} 10. Qe1 {[%clk 0:02:57.9]} 10... d5 {[%clk 0:02:43.7]} 11. e5 {[%clk
0:02:57.2]} 11... Nd7 {[%clk 0:02:35.1]} 12. b3 {[%clk 0:02:57.3]} 12... Nb6
{[%clk 0:02:23.6]} 13. Ba3 {[%clk 0:02:52.6]} 13... Nd7 {[%clk 0:02:13.8]} 14.
Na4 {[%clk 0:02:50.4]} 14... Bh6 {[%clk 0:01:36.6]} 15. Nd2 {[%clk 0:02:30.9]}
15... Qa5 {[%clk 0:01:31.2]} 16. c4 {[%clk 0:02:25.9]} 16... Rd8 {[%clk
0:01:02.3]} 17. Rd1 {[%clk 0:02:22.1]} 17... Bf8 {[%clk 0:01:00.2]} 18. Qf2
{[%clk 0:02:10.1]} 18... d4 {[%clk 0:00:56.1]} 19. Ne4 {[%clk 0:02:08.4]} 19...
Nb6 {[%clk 0:00:42.5]} 20. Qh4 {[%clk 0:01:57.1]} 20... h5 {[%clk 0:00:06.5]}
21. Qxd8 {[%clk 0:01:50.8]} 21... Bb7 {[%clk 0:00:06.7]} 22. Nf6+ {[%clk
0:01:35.8]} 22... Kg7 {[%clk 0:00:06.1]} 23. Qc7 {[%clk 0:01:28.7]} 23... Rb8
{[%clk 0:00:01.7]} 24. Nd7 {[%clk 0:01:22.9]} 1-0

[Event "Betsys MČR v online bleskovém šachu 2021"]
[Site "Chess.com"]
[Date "2021.04.17"]
[Round "3"]
[White "Krtecci"]
[Black "KajaOl"]
[Result "0-1"]
[WhiteElo "2103"]
[BlackElo "2366"]
[TimeControl "180+1"]
[EndTime "9:25:41 PDT"]
[Termination "Uživatel KajaOl zvítězil po vzdání soupeře"]

1. e4 {[%clk 0:03:00.9]} 1... Nf6 {[%clk 0:02:58.8]} 2. e5 {[%clk 0:03:00.5]}
2... Nd5 {[%clk 0:02:58.9]} 3. d4 {[%clk 0:03:00.7]} 3... d6 {[%clk 0:02:58.5]}
4. c4 {[%clk 0:02:58.9]} 4... Nb6 {[%clk 0:02:58.3]} 5. exd6 {[%clk 0:02:57.2]}
5... cxd6 {[%clk 0:02:59.2]} 6. Nc3 {[%clk 0:02:55.4]} 6... g6 {[%clk
0:02:58.8]} 7. Bd3 {[%clk 0:02:34.4]} 7... Bg7 {[%clk 0:02:58.3]} 8. Nge2 {[%clk
0:02:34.4]} 8... O-O {[%clk 0:02:58]} 9. O-O {[%clk 0:02:30.2]} 9... Nc6 {[%clk
0:02:56.2]} 10. Be3 {[%clk 0:02:29.6]} 10... e5 {[%clk 0:02:40.2]} 11. d5 {[%clk
0:02:02.4]} 11... Nb4 {[%clk 0:02:29.6]} 12. b3 {[%clk 0:01:39.9]} 12... Nxd3
{[%clk 0:02:27.3]} 13. Qxd3 {[%clk 0:01:39.5]} 13... f5 {[%clk 0:02:16.9]} 14.
f4 {[%clk 0:01:36.6]} 14... Nd7 {[%clk 0:02:09.3]} 15. Rad1 {[%clk 0:01:28.3]}
15... b6 {[%clk 0:01:59.4]} 16. Bf2 {[%clk 0:01:13.2]} 16... Nf6 {[%clk
0:01:50.1]} 17. Bh4 {[%clk 0:01:09.6]} 17... Qd7 {[%clk 0:01:45.1]} 18. Qf3
{[%clk 0:00:53.2]} 18... Bb7 {[%clk 0:01:39.7]} 19. Kh1 {[%clk 0:00:48.2]} 19...
Rae8 {[%clk 0:01:34]} 20. Qh3 {[%clk 0:00:39]} 20... Ng4 {[%clk 0:01:28.6]} 21.
Rd3 {[%clk 0:00:29.6]} 21... h6 {[%clk 0:01:17.4]} 22. Qf3 {[%clk 0:00:26.8]}
22... a6 {[%clk 0:01:12.3]} 23. h3 {[%clk 0:00:25.9]} 23... e4 {[%clk
0:01:08.8]} 24. Nxe4 {[%clk 0:00:22.8]} 24... fxe4 {[%clk 0:01:07.5]} 25. Qxg4
{[%clk 0:00:23.3]} 25... Qxg4 {[%clk 0:01:07]} 26. hxg4 {[%clk 0:00:24.2]} 26...
exd3 {[%clk 0:01:07.2]} 0-1

[Event "Betsys MČR v online bleskovém šachu 2021"]
[Site "Chess.com"]
[Date "2021.04.17"]
[Round "3"]
[White "lockerbieQ"]
[Black "krystofkrizek1"]
[Result "0-1"]
[WhiteElo "1736"]
[BlackElo "2099"]
[TimeControl "180+1"]
[EndTime "9:25:42 PDT"]
[Termination "Uživatel krystofkrizek1 zvítězil po vzdání soupeře"]

1. e4 {[%clk 0:03:00.9]} 1... g6 {[%clk 0:03:00]} 2. d4 {[%clk 0:03:00.5]} 2...
d5 {[%clk 0:02:59.7]} 3. e5 {[%clk 0:02:55]} 3... c5 {[%clk 0:02:59.3]} 4. c3
{[%clk 0:02:49.2]} 4... Nc6 {[%clk 0:02:58.8]} 5. Be3 {[%clk 0:02:41.1]} 5...
Nh6 {[%clk 0:02:50.7]} 6. Bd3 {[%clk 0:02:36]} 6... Nf5 {[%clk 0:02:42]} 7. Ne2
{[%clk 0:02:33.6]} 7... Nxe3 {[%clk 0:02:06.1]} 8. fxe3 {[%clk 0:02:33.3]} 8...
Bh6 {[%clk 0:02:06.8]} 9. e4 {[%clk 0:02:15.6]} 9... Bg4 {[%clk 0:01:48]} 10.
O-O {[%clk 0:00:53.3]} 10... O-O {[%clk 0:01:36.2]} 11. Nd2 {[%clk 0:00:11.9]}
11... cxd4 {[%clk 0:01:24.8]} 12. Kh1 {[%clk 0:00:11.4]} 12... dxc3 {[%clk
0:01:17.8]} 13. bxc3 {[%clk 0:00:11.8]} 13... Bxd2 {[%clk 0:01:17.3]} 14. Qxd2
{[%clk 0:00:11.7]} 14... dxe4 {[%clk 0:01:17.8]} 15. Qf4 {[%clk 0:00:01.8]}
15... exd3 {[%clk 0:01:03.7]} 16. Qxg4 {[%clk 0:00:02.1]} 16... dxe2 {[%clk
0:01:04.2]} 17. Qxe2 {[%clk 0:00:02.2]} 17... Qd5 {[%clk 0:01:02]} 0-1

[Event "Betsys MČR v online bleskovém šachu 2021"]
[Site "Chess.com"]
[Date "2021.04.17"]
[Round "3"]
[White "chessbeer17"]
[Black "Drak1961"]
[Result "1-0"]
[WhiteElo "2346"]
[BlackElo "2089"]
[TimeControl "180+1"]
[EndTime "9:25:48 PDT"]
[Termination "Uživatel chessbeer17 zvítězil po vzdání soupeře"]

1. d4 {[%clk 0:03:00.9]} 1... Nf6 {[%clk 0:02:59.2]} 2. c4 {[%clk 0:03:01.1]}
2... g6 {[%clk 0:02:58.6]} 3. Nc3 {[%clk 0:03:01]} 3... Bg7 {[%clk 0:02:58.6]}
4. e4 {[%clk 0:03:00.2]} 4... d6 {[%clk 0:02:58.7]} 5. f4 {[%clk 0:03:00.7]}
5... O-O {[%clk 0:02:57.7]} 6. Nf3 {[%clk 0:03:01.1]} 6... c6 {[%clk 0:02:57]}
7. Bd3 {[%clk 0:03:00.5]} 7... a6 {[%clk 0:02:56]} 8. O-O {[%clk 0:03:00.1]}
8... b5 {[%clk 0:02:54.9]} 9. b3 {[%clk 0:02:54.1]} 9... b4 {[%clk 0:02:50.5]}
10. Ne2 {[%clk 0:02:53.5]} 10... d5 {[%clk 0:02:44.1]} 11. e5 {[%clk 0:02:47.8]}
11... Ne4 {[%clk 0:02:24.9]} 12. Qc2 {[%clk 0:02:36]} 12... f5 {[%clk
0:02:18.4]} 13. cxd5 {[%clk 0:02:25]} 13... cxd5 {[%clk 0:02:17.1]} 14. Bd2
{[%clk 0:02:25.1]} 14... a5 {[%clk 0:02:14.3]} 15. Rac1 {[%clk 0:02:24]} 15...
Ba6 {[%clk 0:02:08]} 16. Ng5 {[%clk 0:02:16.8]} 16... Nxg5 {[%clk 0:02:03.1]}
17. fxg5 {[%clk 0:02:16.5]} 17... Qd7 {[%clk 0:01:52.5]} 18. Nf4 {[%clk
0:02:11.5]} 18... Rc8 {[%clk 0:01:46.3]} 19. Qb1 {[%clk 0:02:05.9]} 19... Nc6
{[%clk 0:01:34.8]} 20. Be3 {[%clk 0:02:01.7]} 20... Nd8 {[%clk 0:01:30]} 21.
Rxc8 {[%clk 0:01:54.1]} 21... Qxc8 {[%clk 0:01:27.3]} 22. Rc1 {[%clk 0:01:54]}
22... Qd7 {[%clk 0:01:26.7]} 23. Rc5 {[%clk 0:01:22.4]} 23... Bxd3 {[%clk
0:01:23]} 24. Qxd3 {[%clk 0:01:20.4]} 24... e6 {[%clk 0:01:22.9]} 25. Qc2 {[%clk
0:01:14.3]} 25... Bf8 {[%clk 0:01:12.1]} 26. Rc7 {[%clk 0:01:12.7]} 26... Qb5
{[%clk 0:01:07.7]} 27. Kf2 {[%clk 0:01:06.3]} 27... a4 {[%clk 0:01:06.7]} 28. h4
{[%clk 0:01:01.9]} 28... axb3 {[%clk 0:01:05.3]} 29. axb3 {[%clk 0:01:02.8]}
29... Qa6 {[%clk 0:00:57.5]} 30. h5 {[%clk 0:01:00.4]} 30... Qa2 {[%clk
0:00:49.3]} 31. hxg6 {[%clk 0:00:57]} 31... hxg6 {[%clk 0:00:48.2]} 32. Nxg6
{[%clk 0:00:53]} 32... Qb2 {[%clk 0:00:47.9]} 33. Qxb2 {[%clk 0:00:49.7]} 1-0